fUSD/lending_fUSD_20250902
["ID","MTS","AMOUNT","RATE_DAILY","PERIOD"]
[382927449,1756773042073,-151.0,0.0003579,30]
[382927450,1756773042083,-685.312989,0.0003579,30]
[382927451,1756773042092,-151.0,0.0003579,30]
[382927452,1756773042102,-151.0,0.0003579,30]
[382927453,1756773042112,-151.0,0.0003579,30]
[382927454,1756773042121,-491.56726788,0.0003579,2]
[382927455,1756773042130,-168.47039583,0.00035797,14]
[382927456,1756773042140,-190893.2475,0.000358,2]
[382927457,1756773042150,-962.19,0.000358,14]
[382927458,1756773042159,-151.0,0.000358,30]
[382927459,1756773042168,-151.0,0.000358,30]
[382927460,1756773042177,-151.0,0.000358,30]
[382927461,1756773042186,-151.0,0.000358,30]
[382927462,1756773042195,-151.0,0.000358,30]
[382927463,1756773042205,-252.070257,0.000358,30]
[382927464,1756773042214,-151.0,0.000358,30]
[382927465,1756773042223,-151.0,0.000358,30]
[382927466,1756773042232,-151.0,0.000358,30]
[382927467,1756773042241,-151.0,0.000358,2]
[382927468,1756773042251,-151.0,0.000358,30]
[382927469,1756773042260,-151.0,0.000358,2]
[382927470,1756773042270,-151.0,0.000358,30]
[382927471,1756773042279,-151.0,0.000358,2]
[382927472,1756773042289,-5062.29491653,0.00035806,2]
[382927473,1756773042298,-150.0,0.00035854,7]
[382927474,1756773042308,-152.0,0.00035865,3]
[382927475,1756773042317,-500.0,0.00035883,2]
[382927476,1756773042327,-187.0,0.0003589,30]
[382927477,1756773042336,-200.0,0.000359,13]
[382927478,1756773042345,-700.0,0.000359,13]
[382927479,1756773042355,-580.0,0.00035929,120]
[382927480,1756773042364,-957.0,0.00035943,120]
[382927481,1756773042374,-1103.0,0.00035975,2]
[382927482,1756773042383,-212.45053244,0.00035982,2]
[382927483,1756773042393,-160.0,0.00035982,2]
[382927484,1756773042403,-160.0,0.00035982,2]
[382927485,1756773042412,-150.0,0.00036,30]
[382927486,1756773042421,-187.0,0.00036,30]
[382927487,1756773042432,-500.0,0.0003602,2]
[382927488,1756773042442,-155.37,0.0003603,60]
[382927489,1756773042452,-5062.29491653,0.00036042,2]
[382927490,1756773042462,-173.63,0.00036072,2]
[382927491,1756773042474,-1103.0,0.00036125,120]
[382927492,1756773042484,-150.0,0.00036126,7]
[382927493,1756773042494,-150.0,0.00036126,7]
[382927494,1756773042503,-150.0,0.00036126,7]
[382927495,1756773042514,-150.0,0.00036126,7]
[382927496,1756773042523,-150.0,0.00036126,7]
[382927497,1756773042533,-150.0,0.00036126,7]
[382927498,1756773042548,-150.0,0.00036126,7]
[382927499,1756773042559,-2552.41387082,0.0003613,10]
[382927500,1756773042568,-500.0,0.00036157,2]
[382927501,1756773042579,-580.0,0.00036189,7]
[382927502,1756773042590,-5062.29491653,0.00036191,2]
[382927503,1756773042600,-167.57130252,0.00036226,15]
[382927504,1756773042610,-3500.0,0.00036238,5]
[382927505,1756773042621,-1103.0,0.00036239,7]
[382927506,1756773042630,-1007.4937863,0.00036267,5]
[382927507,1756773042639,-2000.0,0.00036267,5]
[382927508,1756773042649,-2000.0,0.00036267,5]
[382927509,1756773042660,-2000.0,0.00036267,5]
[382927510,1756773042669,-2000.0,0.00036267,5]
[382927511,1756773042679,-162.38,0.00036268,2]
[382927512,1756773042689,-580.0,0.00036276,2]
[382927513,1756773042699,-1866.53604576,0.00036289,2]
[382927514,1756773042709,-500.0,0.00036294,2]
[382927515,1756773042718,-5062.29491653,0.00036304,2]
[382927516,1756773042728,-1717.0,0.00036305,7]
[382927517,1756773042738,-1019.52790019,0.00036321,5]
[382927518,1756773042747,-1000.0,0.00036392,2]
[382927519,1756773042757,-150.0,0.00036398,7]
[382927520,1756773042768,-500.0,0.00036431,2]
[382927521,1756773042777,-214.0,0.0003647,30]
[382927522,1756773042787,-289.0,0.0003647,2]
[382927523,1756773042796,-695.0,0.0003648,2]
[382927524,1756773042806,-962.19,0.000365,14]
[382927525,1756773042816,-150.0,0.00036525,2]
[382927526,1756773042832,-151.0,0.00036525,30]
[382927527,1756773042845,-151.0,0.00036525,30]
[382927528,1756773042855,-151.0,0.00036525,30]
[382927529,1756773042865,-151.0,0.00036525,30]
[382927530,1756773042875,-183.021038,0.00036525,30]
[382927531,1756773042884,-151.0,0.00036525,30]
[382927532,1756773042894,-183.021038,0.00036525,30]
[382927533,1756773042903,-151.0,0.00036525,30]
[382927534,1756773042912,-183.021038,0.00036525,30]
[382927535,1756773042921,-183.021038,0.00036525,30]
[382927536,1756773042931,-151.0,0.00036525,30]
[382927537,1756773042940,-151.0,0.00036525,30]
[382927538,1756773042950,-151.0,0.00036525,30]
[382927539,1756773042959,-151.0,0.00036525,30]
[382927541,1756773042968,-200.876758,0.00036525,30]
[382927543,1756773042978,-151.0,0.00036525,30]
[382927545,1756773042987,-200.876758,0.00036525,30]
[382927547,1756773042997,-151.0,0.00036525,30]
[382927549,1756773043006,-200.876758,0.00036525,30]
[382927550,1756773043016,-200.876758,0.00036525,30]
[382927551,1756773043026,-1866.53604576,0.00036525,2]
[382927552,1756773043035,-246.74520841,0.00036544,7]
[382927553,1756773043044,-500.0,0.00036568,2]
[382927554,1756773043053,-1000.0,0.000366,7]
[382927555,1756773043063,-2552.41387082,0.0003666,11]
[382927556,1756773043072,-5062.29491653,0.00036695,3]
[382927557,1756773043082,-500.0,0.000367,13]
[382927558,1756773043091,-1000.0,0.000367,7]
[382927560,1756773043100,-1999.99,0.000367,2]
[382927562,1756773043109,-2000.0,0.000367,2]
[382927563,1756773043119,-2000.0,0.000367,2]
[382927564,1756773043128,-2000.0,0.000367,2]
[382927565,1756773043138,-2000.0,0.000367,2]
[382927566,1756773043147,-2000.0,0.000367,2]
[382927567,1756773043156,-2000.0,0.000367,2]
[382927569,1756773043165,-2000.0,0.000367,2]
[382927570,1756773043174,-1637.55,0.000367,2]
[382927571,1756773043184,-1100.0,0.000367,13]
[382927572,1756773043194,-161.0,0.00036705,2]
[382927573,1756773043203,-5062.29491653,0.0003674,3]
[382927574,1756773043212,-2202.17954146,0.0003676,7]
[382927575,1756773043222,-1866.53604576,0.00036762,2]
[382927576,1756773043232,-152.0,0.00036773,4]
[382927577,1756773043241,-1767.89168487,0.00036786,5]
[382927578,1756773043250,-150.0,0.00036789,120]
[382927579,1756773043259,-800.0,0.000368,13]
[382927580,1756773043272,-1500.0,0.000368,13]
[382927581,1756773043281,-2500.0,0.00036815,5]
[382927582,1756773043290,-926.48638355,0.00036815,5]
[382927583,1756773043300,-319.20990827,0.00036815,5]
[382927584,1756773043309,-1506.75090111,0.00036815,5]
[382927585,1756773043319,-200.0,0.00036826,10]
[382927586,1756773043328,-1717.0,0.00036854,120]
[382927587,1756773043338,-617.21002465,0.00036862,2]
[382927588,1756773043347,-523.11286632,0.00036886,2]
[382927589,1756773043356,-155.63253006,0.00036886,9]
[382927590,1756773043365,-881.043648,0.00036886,2]
[382927591,1756773043375,-504.38951839,0.00036886,2]
[382927592,1756773043384,-5062.29491653,0.0003689,3]
[382927593,1756773043394,-1100.0,0.000369,13]
[382927594,1756773043403,-1900.0,0.000369,13]
[382927595,1756773043412,-222.0,0.00036909,2]
[382927596,1756773043422,-150.0,0.00036941,7]
[382927597,1756773043431,-20249.1796661,0.00036949,3]
[382927598,1756773043440,-154.92,0.00036949,2]
[382927599,1756773043450,-5062.29491653,0.00036956,3]
[382927600,1756773043460,-10770.0,0.00036959,120]
[382927601,1756773043470,-32479.0,0.00036959,120]
[382927602,1756773043480,-10124.5898331,0.00036966,3]
[382927603,1756773043490,-55685.2440818,0.00036966,3]
[382927604,1756773043500,-500.0,0.00036973,5]
[382927605,1756773043510,-160.32712364,0.00036973,5]
[382927606,1756773043522,-500.0,0.00036973,5]
[382927607,1756773043532,-500.0,0.00036973,5]
[382927608,1756773043542,-500.0,0.00036973,5]
[382927609,1756773043555,-295.101891,0.00036976,30]
[382927612,1756773043835,-151.0,0.00036976,30]
[382927613,1756773043845,-151.0,0.00036976,30]
[382927614,1756773043856,-151.0,0.00036976,30]
[382927615,1756773043866,-151.0,0.00036976,30]
[382927616,1756773043875,-153.207456,0.00036976,30]
[382927617,1756773043885,-151.0,0.00036976,30]
[382927618,1756773043894,-151.0,0.00036976,30]
[382927619,1756773043904,-292.908117,0.00036976,14]
[382927620,1756773043914,-151.0,0.00036976,30]
[382927621,1756773043924,-151.0,0.00036976,30]
[382927622,1756773043934,-151.0,0.00036976,30]
[382927623,1756773043944,-151.0,0.00036976,30]
[382927624,1756773043954,-151.0,0.00036976,30]
[382927625,1756773043964,-151.0,0.00036976,30]
[382927626,1756773043974,-151.0,0.00036976,30]
[382927627,1756773043983,-151.0,0.00036976,30]
[382927628,1756773043993,-151.0,0.00036976,30]
[382927629,1756773044003,-151.0,0.00036976,30]
[382927630,1756773044012,-151.0,0.00036976,30]
[382927631,1756773044023,-151.0,0.00036976,30]
[382927632,1756773044033,-151.0,0.00036976,30]
[382927633,1756773044043,-340.161811,0.00036976,30]
[382927634,1756773044052,-340.161811,0.00036976,30]
[382927635,1756773044063,-151.0,0.00036976,30]
[382927636,1756773044074,-340.161811,0.00036976,30]
[382927637,1756773044084,-340.161811,0.00036976,30]
[382927638,1756773044094,-151.0,0.00036976,30]
[382927639,1756773044102,-151.0,0.00036976,30]
[382927640,1756773044112,-151.0,0.00036976,30]
[382927641,1756773044121,-151.0,0.00036976,30]
[382927642,1756773044131,-151.0,0.00036976,30]
[382927643,1756773044142,-151.0,0.00036976,30]
[382927644,1756773044153,-151.0,0.00036976,30]
[382927645,1756773044164,-151.0,0.00036976,30]
[382927646,1756773044175,-151.0,0.00036976,30]
[382927647,1756773044188,-294.486153,0.00036976,30]
[382927648,1756773044201,-204.3407,0.00036976,30]
[382927649,1756773044211,-204.3407,0.00036976,30]
[382927650,1756773044220,-151.0,0.00036976,30]
[382927651,1756773044230,-151.0,0.00036976,30]
[382927652,1756773044240,-204.3407,0.00036976,30]
[382927653,1756773044251,-151.0,0.00036976,30]
[382927654,1756773044261,-151.0,0.00036976,30]
[382927655,1756773044271,-151.0,0.00036976,30]
[382927656,1756773044281,-204.3407,0.00036976,30]
[382927657,1756773044290,-151.0,0.00036976,30]
[382927658,1756773044299,-151.0,0.00036976,30]
[382927659,1756773044309,-151.0,0.00036976,30]
[382927660,1756773044318,-151.0,0.00036976,30]
[382927661,1756773044328,-151.0,0.00036976,30]
[382927662,1756773044337,-151.0,0.00036976,30]
[382927663,1756773044346,-151.0,0.00036976,30]
[382927664,1756773044356,-405.626357,0.00036976,30]
[382927665,1756773044365,-221.510451,0.00036976,30]
[382927666,1756773044374,-405.626357,0.00036976,30]
[382927667,1756773044383,-405.626357,0.00036976,30]
[382927668,1756773044393,-405.626357,0.00036976,30]
[382927669,1756773044402,-151.0,0.00036976,30]
[382927670,1756773044411,-151.0,0.00036976,30]
[382927671,1756773044421,-151.0,0.00036976,30]
[382927672,1756773044430,-151.0,0.00036976,30]
[382927673,1756773044441,-151.0,0.00036976,30]
[382927674,1756773044451,-153.557823,0.00036976,30]
[382927675,1756773044460,-165.658278,0.00036976,30]
[382927676,1756773044470,-511.012922,0.00036976,30]
[382927677,1756773044481,-511.012922,0.00036976,30]
[382927678,1756773044491,-151.0,0.00036976,30]
[382927679,1756773044500,-511.012922,0.00036976,30]
[382927680,1756773044510,-151.0,0.00036976,30]
[382927681,1756773044521,-511.012922,0.00036976,30]
[382927682,1756773044530,-151.0,0.00036976,30]
[382927683,1756773044541,-151.0,0.00036976,30]
[382927684,1756773044554,-342.00864,0.00036976,30]
[382927685,1756773044565,-342.00864,0.00036976,30]
[382927686,1756773044574,-342.00864,0.00036976,30]
[382927687,1756773044584,-151.0,0.00036976,30]
[382927688,1756773044594,-342.00864,0.00036976,30]
[382927689,1756773044604,-151.0,0.00036976,30]
[382927690,1756773044613,-151.0,0.00036976,30]
[382927691,1756773044624,-151.0,0.00036976,30]
[382927692,1756773044634,-299.410776,0.00036976,30]
[382927693,1756773044644,-151.0,0.00036976,30]
[382927694,1756773044654,-151.0,0.00036976,30]
[382927695,1756773044665,-151.0,0.00036976,30]
[382927696,1756773044675,-151.0,0.00036976,30]
[382927697,1756773044686,-685.312989,0.00036976,30]
[382927698,1756773044695,-685.312989,0.00036976,30]
[382927699,1756773044705,-151.0,0.00036976,30]
[382927700,1756773044715,-685.312989,0.00036976,30]
[382927701,1756773044724,-151.0,0.00036976,30]
[382927702,1756773044735,-151.0,0.00036976,30]
[382927703,1756773044745,-685.312989,0.00036976,30]
[382927704,1756773044755,-151.0,0.00036976,30]
[382927705,1756773044764,-151.0,0.00036976,30]
[382927706,1756773044775,-691.72001646,0.00036978,120]
[382927707,1756773044785,-500.0,0.00036986,7]
[382927708,1756773044795,-1100.0,0.00036986,7]
[382927709,1756773044805,-215.28234833,0.00036986,2]
[382927710,1756773044814,-400.0,0.00036986,14]
[382927711,1756773044824,-400.0,0.00036986,14]
[382927712,1756773044834,-400.0,0.00036986,14]
[382927713,1756773044843,-500.0,0.00036986,2]
[382927714,1756773044853,-400.0,0.00036986,14]
[382927715,1756773044863,-400.0,0.00036986,14]
[382927716,1756773044875,-400.0,0.00036986,14]
[382927717,1756773044884,-400.0,0.00036986,14]
[382927718,1756773044894,-400.0,0.00036986,14]
[382927719,1756773044904,-400.0,0.00036986,14]
[382927720,1756773044914,-400.0,0.00036986,14]
[382927721,1756773044924,-400.0,0.00036986,14]
[382927722,1756773044934,-400.0,0.00036986,14]
[382927723,1756773044943,-400.0,0.00036986,14]
[382927724,1756773044953,-400.0,0.00036986,14]
[382927725,1756773044963,-400.0,0.00036986,14]
[382927726,1756773044973,-400.0,0.00036986,14]
[382927727,1756773044983,-400.0,0.00036986,2]
[382927728,1756773044992,-400.0,0.00036986,14]
[382927729,1756773045002,-400.0,0.00036986,14]
[382927730,1756773045012,-400.0,0.00036986,14]
[382927731,1756773045022,-400.0,0.00036986,14]
[382927732,1756773045032,-400.0,0.00036986,14]
[382927733,1756773045043,-400.0,0.00036986,14]
[382927734,1756773045053,-400.0,0.00036986,14]
[382927735,1756773045063,-369.69669331,0.00036986,14]
[382927736,1756773045072,-400.0,0.00036986,14]
[382927737,1756773045083,-400.0,0.00036986,14]
[382927738,1756773045092,-757.22,0.00036986,14]
[382927739,1756773045102,-400.0,0.00036986,14]
[382927740,1756773045113,-400.0,0.00036986,14]
[382927741,1756773045124,-400.0,0.00036986,14]
[382927742,1756773045134,-400.0,0.00036986,14]
[382927743,1756773045143,-400.0,0.00036986,14]
[382927744,1756773045153,-400.0,0.00036986,14]
[382927745,1756773045163,-400.0,0.00036986,14]
[382927746,1756773045172,-463.97,0.00036986,14]
[382927747,1756773045182,-400.0,0.00036986,14]
[382927748,1756773045192,-453.58,0.00036986,14]
[382927749,1756773045201,-400.0,0.00036986,14]
[382927750,1756773045211,-400.0,0.00036986,14]
[382927751,1756773045221,-400.0,0.00036986,14]
[382927752,1756773045230,-430.08,0.00036986,14]
[382927753,1756773045240,-400.0,0.00036986,14]
[382927754,1756773045250,-400.0,0.00036986,14]
[382927755,1756773045259,-490.62221714,0.00036986,14]
[382927756,1756773045269,-425.93,0.00036986,14]
[382927757,1756773045279,-400.0,0.00036986,14]
[382927758,1756773045289,-400.0,0.00036986,14]
[382927759,1756773045299,-400.0,0.00036986,14]
[382927760,1756773045308,-400.0,0.00036986,14]
[382927761,1756773045318,-400.0,0.00036986,14]
[382927762,1756773045328,-400.0,0.00036986,14]
[382927763,1756773045339,-400.0,0.00036986,14]
[382927764,1756773045350,-400.0,0.00036986,14]
[382927765,1756773045359,-400.0,0.00036986,14]
[382927766,1756773045369,-400.0,0.00036986,14]
[382927767,1756773045379,-400.0,0.00036986,14]
[382927768,1756773045388,-617.71,0.00036986,14]
[382927769,1756773045398,-400.0,0.00036986,14]
[382927770,1756773045407,-400.0,0.00036986,14]
[382927771,1756773045416,-400.0,0.00036986,14]
[382927772,1756773045426,-400.0,0.00036986,14]
[382927773,1756773045435,-400.0,0.00036986,14]
[382927774,1756773045446,-400.0,0.00036986,14]
[382927775,1756773045456,-400.0,0.00036986,14]
[382927776,1756773045465,-400.0,0.00036986,14]
[382927777,1756773045475,-400.0,0.00036986,14]
[382927778,1756773045485,-400.0,0.00036986,14]
[382927779,1756773045494,-400.0,0.00036986,14]
[382927780,1756773045504,-400.0,0.00036986,14]
[382927781,1756773045514,-767.42,0.00036986,14]
[382927782,1756773045525,-400.0,0.00036986,14]
[382927783,1756773045535,-400.0,0.00036986,14]
[382927784,1756773045548,-444.43,0.00036986,14]
[382927785,1756773045558,-248.262824,0.00036986,14]
[382927786,1756773045567,-797.93,0.00036986,14]
[382927787,1756773045577,-461.05,0.00036986,14]
[382927788,1756773045589,-300.0,0.00036986,2]
[382927789,1756773045599,-158.556191,0.00036986,14]
[382927790,1756773045610,-346.532481,0.00036986,14]
[382927791,1756773045621,-400.0,0.00036986,14]
[382927792,1756773045631,-418.435399,0.00036986,14]
[382927793,1756773045641,-346.532481,0.00036986,14]
[382927794,1756773045651,-734.1,0.00036986,14]
[382927795,1756773045660,-400.0,0.00036986,14]
[382927796,1756773045670,-614.99,0.00036986,14]
[382927797,1756773045680,-630.39,0.00036986,14]
[382927798,1756773045690,-400.0,0.00036986,14]
[382927799,1756773045700,-400.0,0.00036986,14]
[382927800,1756773045711,-547.87,0.00036986,14]
[382927801,1756773045721,-400.0,0.00036986,14]
[382927802,1756773045731,-400.0,0.00036986,14]
[382927803,1756773045743,-400.0,0.00036986,14]
[382927804,1756773045752,-400.0,0.00036986,14]
[382927805,1756773045762,-400.0,0.00036986,14]
[382927806,1756773045773,-400.0,0.00036986,14]
[382927807,1756773045783,-400.0,0.00036986,14]
[382927808,1756773045792,-400.0,0.00036986,14]
[382927809,1756773045802,-400.0,0.00036986,14]
[382927810,1756773045812,-400.0,0.00036986,14]
[382927811,1756773045822,-400.0,0.00036986,14]
[382927812,1756773045832,-814.84,0.00036986,14]
[382927813,1756773045842,-400.0,0.00036986,14]
[382927814,1756773045851,-647.94,0.00036986,14]
[382927815,1756773045861,-435.46,0.00036986,14]
[382927816,1756773045871,-400.0,0.00036986,14]
[382927817,1756773045883,-400.0,0.00036986,14]
[382927818,1756773045895,-697.96,0.00036986,14]
[382927819,1756773045906,-597.78,0.00036986,14]
[382927820,1756773045918,-400.0,0.00036986,14]
[382927821,1756773045928,-400.0,0.00036986,14]
[382927822,1756773045938,-648.49,0.00036986,14]
[382927823,1756773045948,-765.21,0.00036986,14]
[382927824,1756773045957,-400.0,0.00036986,14]
[382927825,1756773045967,-437.66,0.00036986,14]
[382927826,1756773045977,-526.99,0.00036986,14]
[382927827,1756773045987,-400.0,0.00036986,14]
[382927828,1756773045997,-400.0,0.00036986,14]
[382927829,1756773046006,-400.0,0.00036986,14]
[382927830,1756773046016,-400.0,0.00036986,14]
[382927831,1756773046026,-400.0,0.00036986,14]
[382927832,1756773046036,-400.0,0.00036986,14]
[382927833,1756773046047,-400.0,0.00036986,14]
[382927834,1756773046057,-400.0,0.00036986,14]
[382927835,1756773046067,-624.65,0.00036986,14]
[382927836,1756773046077,-400.0,0.00036986,14]
[382927837,1756773046087,-410.43,0.00036986,14]
[382927838,1756773046097,-597.28,0.00036986,14]
[382927839,1756773046109,-400.0,0.00036986,14]
[382927840,1756773046119,-483.47,0.00036986,14]
[382927841,1756773046129,-400.0,0.00036986,14]
[382927842,1756773046138,-400.0,0.00036986,14]
[382927843,1756773046148,-400.0,0.00036986,14]
[382927845,1756773046159,-552.9,0.00036986,14]
[382927846,1756773046169,-400.0,0.00036986,14]
[382927848,1756773046178,-400.0,0.00036986,14]
[382927849,1756773046188,-400.0,0.00036986,14]
[382927850,1756773046198,-400.0,0.00036986,14]
[382927851,1756773046208,-500.0,0.00036986,14]
[382927852,1756773046217,-400.0,0.00036986,14]
[382927853,1756773046330,-500.0,0.00036986,14]
[382927854,1756773046341,-400.0,0.00036986,14]
[382927855,1756773046351,-955.6,0.00036986,14]
[382927856,1756773046361,-400.0,0.00036986,14]
[382927857,1756773046372,-400.0,0.00036986,14]
[382927858,1756773046381,-463.3,0.00036986,14]
[382927859,1756773046391,-479.87,0.00036986,14]
[382927860,1756773046400,-794.99,0.00036986,14]
[382927861,1756773046409,-444.14,0.00036986,14]
[382927862,1756773046419,-400.0,0.00036986,14]
[382927863,1756773046428,-151.0,0.00036986,30]
[382927864,1756773046437,-225.51242905,0.00036986,30]
[382927865,1756773046447,-400.0,0.00036986,14]
[382927866,1756773046456,-821.69,0.00036986,14]
[382927867,1756773046466,-400.0,0.00036986,14]
[382927868,1756773046476,-264.987467,0.00036986,30]
[382927869,1756773046486,-400.0,0.00036986,14]
[382927870,1756773046496,-400.0,0.00036986,14]
[382927871,1756773046506,-400.0,0.00036986,14]
[382927872,1756773046516,-560.54,0.00036986,14]
[382927873,1756773046526,-400.0,0.00036986,14]
[382927874,1756773046537,-440.25,0.00036986,14]
[382927875,1756773046552,-400.0,0.00036986,14]
[382927876,1756773046564,-575.87,0.00036986,14]
[382927877,1756773046574,-157.206097,0.00036986,30]
[382927878,1756773046583,-400.0,0.00036986,14]
[382927879,1756773046593,-400.0,0.00036986,14]
[382927880,1756773046603,-400.0,0.00036986,14]
[382927881,1756773046613,-436.8,0.00036986,14]
[382927882,1756773046625,-400.0,0.00036986,14]
[382927883,1756773046635,-400.0,0.00036986,14]
[382927884,1756773046644,-400.0,0.00036986,14]
[382927885,1756773046655,-400.0,0.00036986,14]
[382927886,1756773046665,-468.65,0.00036986,14]
[382927887,1756773046675,-575.96,0.00036986,14]
[382927888,1756773046685,-433.16,0.00036986,14]
[382927889,1756773046695,-436.15,0.00036986,14]
[382927890,1756773046705,-436.34,0.00036986,14]
[382927891,1756773046715,-400.0,0.00036986,14]
[382927892,1756773046724,-151.0,0.00036986,30]
[382927893,1756773046733,-400.0,0.00036986,14]
[382927894,1756773046743,-621.49,0.00036986,14]
[382927895,1756773046752,-400.0,0.00036986,14]
[382927896,1756773046761,-400.0,0.00036986,14]
[382927897,1756773046772,-400.0,0.00036986,14]
[382927898,1756773046781,-400.0,0.00036986,14]
[382927899,1756773046791,-400.0,0.00036986,14]
[382927900,1756773046802,-400.0,0.00036986,14]
[382927902,1756773046811,-400.0,0.00036986,14]
[382927903,1756773046820,-400.0,0.00036986,14]
[382927904,1756773046830,-435.56,0.00036986,14]
[382927905,1756773046839,-400.0,0.00036986,14]
[382927906,1756773046849,-802.85,0.00036986,14]
[382927907,1756773046858,-400.0,0.00036986,14]
[382927908,1756773046867,-400.0,0.00036986,14]
[382927909,1756773046877,-400.0,0.00036986,14]
[382927910,1756773046887,-400.0,0.00036986,14]
[382927911,1756773046896,-482.51,0.00036986,14]
[382927912,1756773046906,-400.0,0.00036986,14]
[382927913,1756773046915,-400.0,0.00036986,14]
[382927914,1756773046924,-719.85,0.00036986,14]
[382927915,1756773046933,-400.0,0.00036986,14]
[382927916,1756773046943,-663.84,0.00036986,14]
[382927917,1756773046952,-400.0,0.00036986,14]
[382927918,1756773046962,-400.0,0.00036986,14]
[382927919,1756773046971,-400.0,0.00036986,14]
[382927920,1756773046980,-400.0,0.00036986,14]
[382927921,1756773046989,-400.0,0.00036986,14]
[382927922,1756773046998,-400.0,0.00036986,14]
[382927923,1756773047007,-400.0,0.00036986,14]
[382927924,1756773047016,-400.0,0.00036986,14]
[382927925,1756773047026,-400.0,0.00036986,14]
[382927926,1756773047035,-572.57,0.00036986,14]
[382927927,1756773047044,-400.0,0.00036986,14]
[382927928,1756773047054,-400.0,0.00036986,14]
[382927929,1756773047063,-400.0,0.00036986,14]
[382927930,1756773047072,-400.0,0.00036986,14]
[382927931,1756773047081,-400.0,0.00036986,14]
[382927932,1756773047090,-400.0,0.00036986,14]
[382927933,1756773047099,-400.0,0.00036986,14]
[382927934,1756773047108,-400.0,0.00036986,14]
[382927935,1756773047117,-400.0,0.00036986,14]
[382927936,1756773047127,-262.146326,0.00036986,30]
[382927937,1756773047135,-432.74,0.00036986,14]
[382927938,1756773047145,-400.0,0.00036986,14]
[382927939,1756773047154,-400.0,0.00036986,14]
[382927940,1756773047163,-400.0,0.00036986,14]
[382927941,1756773047173,-400.0,0.00036986,14]
[382927942,1756773047182,-151.0,0.00036986,30]
[382927943,1756773047190,-151.0,0.00036986,30]
[382927944,1756773047200,-734.18,0.00036986,14]
[382927945,1756773047209,-400.0,0.00036986,14]
[382927946,1756773047218,-400.0,0.00036986,14]
[382927947,1756773047227,-401.11810547,0.00036986,14]
[382927948,1756773047237,-400.0,0.00036986,14]
[382927949,1756773047246,-400.0,0.00036986,14]
[382927950,1756773047256,-400.0,0.00036986,14]
[382927951,1756773047265,-697.04,0.00036986,14]
[382927952,1756773047274,-400.0,0.00036986,14]
[382927953,1756773047283,-400.0,0.00036986,14]
[382927954,1756773047292,-400.0,0.00036986,14]
[382927955,1756773047301,-443.42,0.00036986,14]
[382927956,1756773047310,-400.0,0.00036986,14]
[382927957,1756773047320,-400.0,0.00036986,14]
[382927958,1756773047329,-400.0,0.00036986,14]
[382927959,1756773047338,-400.0,0.00036986,14]
[382927960,1756773047347,-400.0,0.00036986,14]
[382927961,1756773047357,-400.0,0.00036986,14]